[Event "Guimaraes Open 2018"]
[Site "Guimaraes"]
[Date "2018.10.05"]
[Round "1"]
[White "Fernandes, Miguel Antonio"]
[Black "Duarte, Francisco Joaquim V"]
[Result "1-0"]
[ECO "D50"]
[WhiteElo "2048"]
[BlackElo "1235"]
[Annotator "NA RC"]
[PlyCount "75"]
[EventDate "2018.10.04"]
[EventType "swiss"]
[EventCountry "POR"]
[SourceTitle "playchess.com"]
[Source "ChessBase"]
[SourceQuality "1"]
[TimeControl "5400+30"]

1. d4 {[%emt 0:00:00]} d5 {[%emt 0:00:00]} 2. c4 {[%emt 0:00:00]} e6 {[%emt 0:00:27]} 3. Nc3 {[%emt 0:00:00]} Nf6 {[%emt 0:00:31]} 4. Bg5 {[%emt 0:00:00]} Bb4 {[%emt 0:00:21]} 5. Qa4+ {[%emt 0:00:22]} Nc6 {[%emt 0:00:16]} 6. a3 {[%emt 0:02:40]} Bxc3+ {[%emt 0:00:23]} 7. bxc3 {[%emt 0:00:07]} O-O {[%emt 0:00:52]} 8. e3 {[%emt 0:02:05]} Bd7 {[%emt 0:00:42]} 9. cxd5 {[%emt 0:01:36]} exd5 {[%emt 0:00:43]} 10. Qc2 {[%emt 0:00:28]} h6 {[%emt 0:01:14]} 11. Bh4 {[%emt 0:00:29]} Re8 {[%emt 0:00:27]} 12. Bd3 {[%emt 0:00:51]} Qe7 {[%emt 0:01:16]} 13. Nf3 {[%emt 0:01:43]} Qd6 {[%emt 0:00:19]} 14. Bg3 {[%emt 0:01:12]} Qe7 {[%emt 0:02:19]} 15. O-O {[%emt 0:00:31]} Bg4 {[%emt 0:00:26]} 16. Nd2 {[%emt 0:01:27]} Rac8 {[%emt 0:04:13]} 17. a4 {[%emt 0:02:41]} a5 {[%emt 0:01:06]} 18. Rab1 {[%emt 0:02:29]} Rb8 {[%emt 0:00:49]} 19. Rfe1 {[%emt 0:03:22]} Qd7 {[%emt 0:01:31]} 20. h3 {[%emt 0:04:50]} Be6 {[%emt 0:01:33]} 21. Bh4 {[%emt 0:04:03]} Qd8 {[%emt 0:04:05]} 22. e4 {[%emt 0:01:54]} dxe4 {[%emt 0:00:26]} 23. Nxe4 {[%emt 0:00:14]} g5 {[%emt 0:02:25]} 24. Nxf6+ {[%emt 0:02:56]} Qxf6 25. Bg3 {[%emt 0:00:19]} Re7 {[%emt 0:00:55]} 26. Be4 {[%emt 0:01:33]} Bd7 {[%emt 0:01:06]} 27. Bxc7 {[%emt 0:05:46]} Rbe8 {[%emt 0:01:10]} 28. Bg3 {[%emt 0:02:08]} Bf5 {[%emt 0:02:41]} 29. f3 {[%emt 0:00:15]} Bxe4 {[%emt 0:00:27]} 30. fxe4 {[%emt 0:00:54]} Qg6 {[%emt 0:00:17]} 31. Qf2 {[%emt 0:06:30]} Rxe4 {[%emt 0:00:29]} 32. Rxe4 {[%emt 0:00:19]} Rxe4 {[%emt 0:01:03]} 33. Rxb7 {[%emt 0:00:54]} Re7 {[%emt 0:00:47]} 34. Rxe7 {[%emt 0:02:41]} Nxe7 {[%emt 0:00:40]} 35. Qe2 {[%emt 0:01:30]} Nd5 {[%emt 0:00:21]} 36. Qe8+ {[%emt 0:00:54]} Kg7 {[%emt 0:00:11]} 37. Qe5+ {[%emt 0:01:38]} Qf6 {[%emt 0:00:51]} 38. Qxd5 {[%emt 0:00:15]} 1-0

[Event "Guimaraes Open 2018"]
[Site "Guimaraes"]
[Date "2018.10.05"]
[Round "1"]
[White "Dong, Fabio"]
[Black "Fernandes, Joao Pedro Murtinho"]
[Result "0-1"]
[ECO "A25"]
[WhiteElo "1289"]
[BlackElo "2052"]
[Annotator "NA RC"]
[PlyCount "50"]
[EventDate "2018.10.04"]
[EventType "swiss"]
[EventCountry "POR"]
[SourceTitle "playchess.com"]
[Source "ChessBase"]
[SourceQuality "1"]
[TimeControl "5400+30"]

1. c4 {[%emt 0:00:00]} e5 {[%emt 0:00:00]} 2. Nc3 {[%emt 0:00:00]} Nc6 {[%emt 0:00:00]} 3. g3 {[%emt 0:00:00]} Bc5 {[%emt 0:00:04]} 4. Bg2 {[%emt 0:00:00]} a6 {[%emt 0:00:19]} 5. e3 {[%emt 0:00:15]} d6 {[%emt 0:00:19]} 6. Nge2 {[%emt 0:00:07]} Ba7 {[%emt 0:00:06]} 7. O-O {[%emt 0:00:14]} h5 {[%emt 0:00:54]} 8. a3 {[%emt 0:04:10]} h4 {[%emt 0:01:42]} 9. d4 {[%emt 0:12:15]} hxg3 {[%emt 0:03:24]} 10. hxg3 {[%emt 0:12:18]} Qg5 {[%emt 0:06:43]} 11. Re1 {[%emt 0:03:57]} Qh5 {[%emt 0:03:00]} 12. dxe5 {[%emt 0:02:38]} Qh2+ {[%emt 0:10:50]} 13. Kf1 {[%emt 0:00:16]} Bh3 {[%emt 0:04:11]} 14. Nf4 {[%emt 0:06:09]} Bxg2+ {[%emt 0:00:17]} 15. Nxg2 {[%emt 0:00:16]} Nxe5 {[%emt 0:03:34]} 16. Qd5 {[%emt 0:13:33]} O-O-O {[%emt 0:01:21]} 17. b3 {[%emt 0:08:05]} Nf6 {[%emt 0:01:07]} 18. Qd2 {[%emt 0:01:53]} Qh1+ {[%emt 0:01:18]} 19. Ke2 {[%emt 0:00:10]} Qxg2 {[%emt 0:00:09]} 20. Qc2 {[%emt 0:02:25]} Qf3+ {[%emt 0:00:41]} 21. Kd2 {[%emt 0:01:14]} Qxf2+ {[%emt 0:01:07]} 22. Kd1 {[%emt 0:00:24]} Qxc2+ {[%emt 0:01:39]} 23. Kxc2 {[%emt 0:00:20]} Rh2+ {[%emt 0:00:07]} 24. Kb1 {[%emt 0:00:09]} Rdh8 {[%emt 0:00:33]} 25. Bb2 {[%emt 0:01:52]} Nd3 {[%emt 0:00:12]} 0-1

[Event "Guimaraes Open 2018"]
[Site "Guimaraes"]
[Date "2018.10.05"]
[Round "1"]
[White "Fernandes, Tiago Joao Carneiro"]
[Black "Pintor, Simao Maciel Abranc"]
[Result "0-1"]
[ECO "B92"]
[WhiteElo "1232"]
[BlackElo "2047"]
[Annotator "NA RC"]
[PlyCount "50"]
[EventDate "2018.10.04"]
[EventType "swiss"]
[EventCountry "POR"]
[SourceTitle "playchess.com"]
[Source "ChessBase"]
[SourceQuality "1"]
[TimeControl "5400+30"]

1. e4 {[%emt 0:00:00]} c5 {[%emt 0:19:24]} 2. Nf3 {[%emt 0:00:35]} d6 {[%emt 0:00:06]} 3. d4 {[%emt 0:00:19]} cxd4 {[%emt 0:00:05]} 4. Nxd4 {[%emt 0:00:08]} Nf6 {[%emt 0:00:06]} 5. Nc3 {[%emt 0:00:21]} a6 {[%emt 0:00:06]} 6. Be2 {[%emt 0:01:10]} e5 {[%emt 0:00:06]} 7. Nb3 {[%emt 0:00:35]} Be7 {[%emt 0:00:22]} 8. f4 {[%emt 0:00:54]} Qb6 {[%emt 0:00:41]} 9. Bf3 {[%emt 0:02:00]} Nc6 {[%emt 0:00:37]} 10. g4 {[%emt 0:08:56]} exf4 {[%emt 0:01:10]} 11. Bxf4 {[%emt 0:00:13]} Ne5 {[%emt 0:00:13]} 12. g5 {[%emt 0:01:38]} Nfg4 {[%emt 0:00:48]} 13. Qe2 {[%emt 0:06:58]} Be6 {[%emt 0:00:06]} 14. Nd5 {[%emt 0:01:12]} Bxd5 {[%emt 0:00:25]} 15. exd5 {[%emt 0:00:46]} Nxf3+ {[%emt 0:01:42]} 16. Qxf3 {[%emt 0:00:45]} Ne5 {[%emt 0:00:04]} 17. Qg3 {[%emt 0:03:25]} Qb4+ 18. Kf2 {[%emt 0:05:11]} Rc8 {[%emt 0:01:29]} 19. Bxe5 {[%emt 0:05:48]} Rxc2+ {[%emt 0:00:14]} 20. Kg1 {[%emt 0:02:36]} dxe5 {[%emt 0:00:14]} 21. Qxe5 {[%emt 0:00:49]} O-O {[%emt 0:01:58]} 22. Nd4 {[%emt 0:01:03]} Qxb2 {[%emt 0:00:41]} 23. Qe1 {[%emt 0:05:20]} Qxd4+ {[%emt 0:00:16]} 24. Kf1 {[%emt 0:00:22]} Qf4+ {[%emt 0:00:15]} 25. Kg1 {[%emt 0:00:29]} Bc5+ {[%emt 0:00:04]} 0-1

[Event "Guimaraes Open 2018"]
[Site "Guimaraes"]
[Date "2018.10.05"]
[Round "2"]
[White "Dias, Ricardo Pedro Cruz"]
[Black "Oliveira, Maria Alice Ramos M"]
[Result "1-0"]
[ECO "B42"]
[WhiteElo "2098"]
[BlackElo "1572"]
[Annotator "NA RC"]
[PlyCount "93"]
[EventDate "2018.10.04"]
[EventType "swiss"]
[EventCountry "POR"]
[SourceTitle "playchess.com"]
[Source "ChessBase"]
[SourceQuality "1"]
[TimeControl "5400+30"]

1. e4 {[%emt 0:00:00]} c5 {[%emt 0:07:23]} 2. Nf3 {[%emt 0:00:00]} e6 {[%emt 0:00:05]} 3. d4 {[%emt 0:00:00]} cxd4 {[%emt 0:00:07]} 4. Nxd4 {[%emt 0:00:04]} a6 {[%emt 0:00:07]} 5. Bd3 {[%emt 0:00:05]} Nf6 {[%emt 0:00:11]} 6. O-O {[%emt 0:00:09]} Qc7 {[%emt 0:00:09]} 7. Qe2 {[%emt 0:00:13]} d6 {[%emt 0:00:19]} 8. a4 {[%emt 0:00:38]} Be7 {[%emt 0:03:22]} 9. Nc3 {[%emt 0:00:14]} O-O {[%emt 0:02:54]} 10. Bd2 {[%emt 0:00:27]} Nbd7 {[%emt 0:01:52]} 11. Kh1 {[%emt 0:05:09]} b6 {[%emt 0:05:03]} 12. f4 {[%emt 0:00:11]} Bb7 {[%emt 0:00:40]} 13. Rf3 {[%emt 0:06:04]} Rfd8 {[%emt 0:19:04]} 14. Rh3 {[%emt 0:02:48]} Bf8 {[%emt 0:01:49]} 15. Nb3 {[%emt 0:15:24]} g6 {[%emt 0:14:44]} 16. Re1 {[%emt 0:08:25]} Bg7 {[%emt 0:05:16]} 17. Qf2 {[%emt 0:02:08]} Nc5 {[%emt 0:10:07]} 18. Nxc5 {[%emt 0:01:11]} bxc5 {[%emt 0:00:50]} 19. Qh4 {[%emt 0:13:19]} h5 {[%emt 0:12:31]} 20. b3 {[%emt 0:08:08]} Qc6 {[%emt 0:10:13]} 21. Rf3 {[%emt 0:02:52]} Nd7 {[%emt 0:01:43]} 22. Qf2 {[%emt 0:01:14]} Bd4 {[%emt 0:00:17]} 23. Qf1 {[%emt 0:00:09]} Qb6 {[%emt 0:01:21]} 24. Ne2 {[%emt 0:00:54]} Bg7 {[%emt 0:00:11]} 25. Bc3 {[%emt 0:00:05]} Nf6 {[%emt 0:00:47]} 26. Ng1 {[%emt 0:06:59]} Rac8 {[%emt 0:00:53]} 27. Qe2 {[%emt 0:01:23]} d5 {[%emt 0:00:47]} 28. Bxf6 {[%emt 0:00:03]} Bxf6 {[%emt 0:00:17]} 29. e5 {[%emt 0:00:04]} Bh4 {[%emt 0:00:35]} 30. g3 {[%emt 0:02:55]} Be7 {[%emt 0:00:19]} 31. Rff1 {[%emt 0:00:35]} Ra8 {[%emt 0:00:56]} 32. Nf3 {[%emt 0:00:17]} Bc6 {[%emt 0:00:24]} 33. h3 {[%emt 0:03:12]} Qb7 {[%emt 0:00:34]} 34. Kh2 {[%emt 0:00:02]} a5 {[%emt 0:00:33]} 35. Rb1 {[%emt 0:03:02]} Qb4 {[%emt 0:00:25]} 36. f5 {[%emt 0:09:09]} exf5 {[%emt 0:00:34]} 37. e6 {[%emt 0:00:01]} f6 {[%emt 0:00:24]} 38. Nh4 {[%emt 0:00:02]} Be8 {[%emt 0:00:37]} 39. Bb5 {[%emt 0:01:55]} Bxb5 {[%emt 0:00:26]} 40. axb5 {[%emt 0:00:01]} Kg7 {[%emt 0:00:33]} 41. Rf4 {[%emt 0:03:32]} Qc3 {[%emt 0:00:34]} 42. Rbf1 {[%emt 0:00:05]} Qe5 {[%emt 0:00:26]} 43. Qf2 {[%emt 0:02:21]} Qxe6 {[%emt 0:00:29]} 44. Re1 {[%emt 0:00:11]} Qf7 {[%emt 0:00:27]} 45. Rxf5 {[%emt 0:00:18]} g5 {[%emt 0:00:36]} 46. Rxg5+ {[%emt 0:00:32]} Kh6 {[%emt 0:00:34]} 47. Rxe7 {[%emt 0:00:18]} 1-0

[Event "Guimaraes Open 2018"]
[Site "Guimaraes"]
[Date "2018.10.05"]
[Round "2"]
[White "Fernandes, Joao Pedro Murtinho"]
[Black "Sora, Ricardo Jorge Pared"]
[Result "1-0"]
[ECO "B12"]
[WhiteElo "2052"]
[BlackElo "1356"]
[Annotator "NA RC"]
[PlyCount "45"]
[EventDate "2018.10.04"]
[EventType "swiss"]
[EventCountry "POR"]
[SourceTitle "playchess.com"]
[Source "ChessBase"]
[SourceQuality "1"]
[TimeControl "5400+30"]

1. e4 {[%emt 0:00:00]} c6 {[%emt 0:00:12]} 2. d4 {[%emt 0:00:00]} d5 {[%emt 0:00:05]} 3. e5 {[%emt 0:00:05]} Bf5 {[%emt 0:00:07]} 4. h4 {[%emt 0:00:06]} h6 {[%emt 0:00:52]} 5. g4 {[%emt 0:00:50]} Be4 {[%emt 0:00:06]} 6. f3 {[%emt 0:00:16]} Bh7 {[%emt 0:00:11]} 7. e6 {[%emt 0:00:51]} fxe6 {[%emt 0:16:18]} 8. Bd3 {[%emt 0:01:35]} Bxd3 {[%emt 0:00:10]} 9. Qxd3 {[%emt 0:00:05]} Qd6 {[%emt 0:09:58]} 10. Ne2 {[%emt 0:08:23]} Nf6 {[%emt 0:07:39]} 11. Bf4 {[%emt 0:03:55]} Qb4+ {[%emt 0:05:13]} 12. Nbc3 {[%emt 0:00:16]} Nbd7 {[%emt 0:08:56]} 13. Qg6+ {[%emt 0:05:25]} Kd8 {[%emt 0:03:11]} 14. O-O {[%emt 0:01:01]} c5 {[%emt 0:06:29]} 15. Be3 {[%emt 0:06:02]} cxd4 {[%emt 0:06:43]} 16. Nxd4 {[%emt 0:00:51]} Qxb2 {[%emt 0:01:27]} 17. Nxe6+ {[%emt 0:01:11]} Kc8 {[%emt 0:00:10]} 18. Bd4 {[%emt 0:05:06]} b6 {[%emt 0:02:17]} 19. a3 {[%emt 0:03:28]} Nc5 {[%emt 0:04:45]} 20. Rfb1 {[%emt 0:01:42]} Qxa1 {[%emt 0:00:14]} 21. Rxa1 {[%emt 0:00:05]} Nxe6 {[%emt 0:00:06]} 22. Qf5 {[%emt 0:00:21]} Kd7 {[%emt 0:00:44]} 23. Re1 {[%emt 0:00:07]} 1-0

[Event "Guimaraes Open 2018"]
[Site "Guimaraes"]
[Date "2018.10.05"]
[Round "2"]
[White "Gawle, Ireneusz"]
[Black "Medarde Santiago, Luis Marcos"]
[Result "0-1"]
[ECO "B22"]
[WhiteElo "1800"]
[BlackElo "2341"]
[Annotator "RC"]
[PlyCount "86"]
[EventDate "2018.10.04"]
[EventType "swiss"]
[EventCountry "POR"]
[SourceTitle "playchess.com"]
[Source "ChessBase"]
[SourceQuality "1"]
[TimeControl "5400+30"]

1. e4 {[%emt 0:00:00]} c5 {[%emt 0:02:35]} 2. c3 {[%emt 0:00:28]} Nf6 {[%emt 0:00:57]} 3. e5 {[%emt 0:00:06]} Nd5 {[%emt 0:00:06]} 4. d4 {[%emt 0:00:02]} cxd4 {[%emt 0:00:20]} 5. Nf3 {[%emt 0:00:19]} e6 {[%emt 0:00:05]} 6. cxd4 {[%emt 0:00:41]} b6 {[%emt 0:00:07]} 7. Bd3 {[%emt 0:02:38]} Ba6 {[%emt 0:04:46]} 8. O-O {[%emt 0:03:43]} Bxd3 {[%emt 0:00:58]} 9. Qxd3 {[%emt 0:00:03]} Be7 {[%emt 0:00:03]} 10. Nc3 {[%emt 0:01:12]} Nxc3 {[%emt 0:00:17]} 11. bxc3 {[%emt 0:00:03]} d5 {[%emt 0:01:08]} 12. exd6 {[%emt 0:05:31]} Qxd6 {[%emt 0:01:43]} 13. Ne5 {[%emt 0:02:20]} O-O {[%emt 0:07:57]} 14. Bf4 {[%emt 0:05:16]} Qd5 {[%emt 0:08:56]} 15. c4 {[%emt 0:14:05]} Qb7 {[%emt 0:03:47]} 16. Rfe1 {[%emt 0:09:27]} Nd7 {[%emt 0:02:31]} 17. Rad1 {[%emt 0:05:36]} Rfd8 {[%emt 0:07:10]} 18. Qh3 {[%emt 0:05:53]} Nf8 {[%emt 0:13:25]} 19. d5 {[%emt 0:22:48]} exd5 {[%emt 0:08:32]} 20. Qf3 {[%emt 0:05:26]} Bb4 {[%emt 0:04:20]} 21. Bd2 {[%emt 0:00:27]} Bxd2 {[%emt 0:05:41]} 22. Rxd2 {[%emt 0:00:02]} Re8 {[%emt 0:00:34]} 23. cxd5 {[%emt 0:04:05]} Rac8 {[%emt 0:08:06]} 24. Nd3 {[%emt 0:01:22]} Ng6 {[%emt 0:03:14]} 25. Rxe8+ {[%emt 0:01:51]} Rxe8 {[%emt 0:00:01]} 26. h3 {[%emt 0:02:37]} Qc7 {[%emt 0:01:24]} 27. g3 {[%emt 0:04:00]} Qd6 {[%emt 0:04:16]} 28. Kg2 {[%emt 0:00:09]} Rd8 {[%emt 0:02:42]} 29. Nf4 {[%emt 0:02:29]} Nxf4+ {[%emt 0:00:01]} 30. Qxf4 {[%emt 0:00:01]} Qxf4 {[%emt 0:00:01]} 31. gxf4 {[%emt 0:00:02]} Kf8 {[%emt 0:00:16]} 32. Kf3 {[%emt 0:00:27]} Ke7 {[%emt 0:00:39]} 33. Ke4 {[%emt 0:00:54]} Rc8 {[%emt 0:00:21]} 34. Kd4 {[%emt 0:01:21]} Kd6 {[%emt 0:00:40]} 35. a4 {[%emt 0:00:17]} Rc5 {[%emt 0:00:22]} 36. Ke4 {[%emt 0:01:45]} Rc4+ {[%emt 0:00:58]} 37. Rd4 {[%emt 0:00:02]} Rxd4+ {[%emt 0:01:41]} 38. Kxd4 {[%emt 0:00:01]} f5 {[%emt 0:00:21]} 39. h4 {[%emt 0:00:32]} g6 {[%emt 0:00:12]} 40. Kc4 {[%emt 0:00:55]} a6 {[%emt 0:00:18]} 41. f3 {[%emt 0:00:35]} h6 {[%emt 0:00:17]} 42. Kd4 {[%emt 0:00:41]} b5 {[%emt 0:00:07]} 43. axb5 {[%emt 0:00:35]} axb5 {[%emt 0:00:04]} 0-1

[Event "Guimaraes Open 2018"]
[Site "Guimaraes"]
[Date "2018.10.06"]
[Round "3"]
[White "Medarde Santiago, Luis Marcos"]
[Black "Dias, Ricardo Pedro Cruz"]
[Result "1-0"]
[ECO "C54"]
[WhiteElo "2341"]
[BlackElo "2098"]
[Annotator "RC"]
[PlyCount "89"]
[EventDate "2018.10.04"]
[EventType "swiss"]
[EventCountry "POR"]
[SourceTitle "playchess.com"]
[Source "ChessBase"]
[SourceQuality "1"]
[TimeControl "5400+30"]

1. e4 {[%emt 0:00:00]} e5 {[%emt 0:01:57]} 2. Nf3 {[%emt 0:00:00]} Nc6 {[%emt 0:00:13]} 3. Bc4 {[%emt 0:00:14]} Bc5 {[%emt 0:00:08]} 4. c3 {[%emt 0:00:06]} Nf6 {[%emt 0:00:04]} 5. d4 {[%emt 0:00:02]} exd4 {[%emt 0:00:06]} 6. e5 {[%emt 0:00:03]} d5 {[%emt 0:00:07]} 7. Bb5 {[%emt 0:00:02]} Ne4 {[%emt 0:00:07]} 8. cxd4 {[%emt 0:00:02]} Bb4+ {[%emt 0:00:09]} 9. Bd2 {[%emt 0:00:28]} Be7 {[%emt 0:00:12]} 10. Qc2 {[%emt 0:14:22]} O-O {[%emt 0:14:33]} 11. O-O {[%emt 0:15:35]} Bg4 {[%emt 0:02:40]} 12. Be3 {[%emt 0:09:46]} f6 {[%emt 0:03:08]} 13. Bxc6 {[%emt 0:12:33]} bxc6 {[%emt 0:00:22]} 14. Ne1 {[%emt 0:01:47]} Bf5 {[%emt 0:03:36]} 15. Qxc6 {[%emt 0:01:45]} Rb8 {[%emt 0:04:02]} 16. Nc3 {[%emt 0:06:25]} Nxc3 {[%emt 0:06:52]} 17. Qxc3 {[%emt 0:00:12]} Bb4 {[%emt 0:01:19]} 18. Qc1 {[%emt 0:00:35]} Bxe1 {[%emt 0:09:34]} 19. Rxe1 {[%emt 0:01:20]} Qd7 {[%emt 0:00:02]} 20. Bf4 {[%emt 0:01:42]} fxe5 {[%emt 0:02:48]} 21. Bxe5 {[%emt 0:00:51]} Rf7 {[%emt 0:00:09]} 22. b3 {[%emt 0:01:42]} Re8 {[%emt 0:05:50]} 23. Re3 {[%emt 0:06:46]} Re6 {[%emt 0:00:11]} 24. Rg3 {[%emt 0:00:45]} h6 {[%emt 0:07:53]} 25. Qa3 {[%emt 0:02:46]} c6 {[%emt 0:01:01]} 26. Rc1 {[%emt 0:00:14]} Qb7 {[%emt 0:00:54]} 27. Qa4 {[%emt 0:04:21]} Re8 {[%emt 0:07:05]} 28. Rc5 {[%emt 0:09:30]} Bd7 {[%emt 0:03:47]} 29. Qa5 {[%emt 0:01:12]} Qb6 {[%emt 0:00:41]} 30. h3 {[%emt 0:01:38]} Re6 {[%emt 0:04:06]} 31. f4 {[%emt 0:01:40]} Kh7 {[%emt 0:01:50]} 32. Qc3 {[%emt 0:02:03]} Re8 {[%emt 0:00:21]} 33. Qc2+ {[%emt 0:00:55]} Kg8 {[%emt 0:01:14]} 34. Qg6 {[%emt 0:01:31]} Re6 {[%emt 0:00:55]} 35. Qc2 {[%emt 0:00:40]} Re8 {[%emt 0:04:30]} 36. Kh2 {[%emt 0:00:13]} Qa6 {[%emt 0:00:37]} 37. Qg6 {[%emt 0:01:39]} Re6 {[%emt 0:00:31]} 38. Qh5 {[%emt 0:01:17]} Qf1 {[%emt 0:00:59]} 39. f5 {[%emt 0:00:39]} Rxe5 {[%emt 0:06:45]} 40. dxe5 {[%emt 0:00:28]} Qxf5 {[%emt 0:00:09]} 41. Qxf5 {[%emt 0:00:37]} Rxf5 {[%emt 0:00:01]} 42. e6 {[%emt 0:00:27]} Bxe6 {[%emt 0:00:17]} 43. Rxc6 {[%emt 0:00:07]} Bf7 {[%emt 0:00:25]} 44. Rc7 {[%emt 0:01:05]} a6 {[%emt 0:00:22]} 45. Rf3 {[%emt 0:00:13]} 1-0

[Event "Guimaraes Open 2018"]
[Site "Guimaraes"]
[Date "2018.10.06"]
[Round "3"]
[White "Silva, Goncalo Nuno Neto P"]
[Black "Soares, Sara Joana De Moura"]
[Result "1-0"]
[ECO "C50"]
[WhiteElo "1996"]
[BlackElo "1431"]
[Annotator "NA RC"]
[PlyCount "57"]
[EventDate "2018.10.04"]
[EventType "swiss"]
[EventCountry "POR"]
[SourceTitle "playchess.com"]
[Source "ChessBase"]
[SourceQuality "1"]
[TimeControl "5400+30"]

1. e4 {[%emt 0:03:47]} e5 {[%emt 0:00:00]} 2. Nf3 {[%emt 0:00:40]} Nc6 {[%emt 0:00:38]} 3. Bc4 {[%emt 0:01:16]} Bc5 {[%emt 0:00:33]} 4. O-O {[%emt 0:02:34]} Nf6 {[%emt 0:01:23]} 5. d3 {[%emt 0:00:37]} d6 {[%emt 0:01:30]} 6. h3 {[%emt 0:00:08]} h6 {[%emt 0:03:59]} 7. c3 {[%emt 0:00:51]} a6 {[%emt 0:01:41]} 8. d4 {[%emt 0:02:46]} exd4 {[%emt 0:10:46]} 9. cxd4 {[%emt 0:00:45]} Ba7 {[%emt 0:00:08]} 10. Nc3 {[%emt 0:00:07]} O-O {[%emt 0:04:10]} 11. Bb3 {[%emt 0:01:05]} Re8 {[%emt 0:10:22]} 12. Re1 {[%emt 0:00:45]} b5 {[%emt 0:11:34]} 13. a3 {[%emt 0:02:35]} Bb7 {[%emt 0:01:44]} 14. Bc2 {[%emt 0:00:15]} Qd7 {[%emt 0:10:42]} 15. Bf4 {[%emt 0:02:10]} Rad8 {[%emt 0:03:39]} 16. Qd3 {[%emt 0:00:34]} Ne7 {[%emt 0:06:28]} 17. e5 {[%emt 0:10:33]} dxe5 {[%emt 0:03:43]} 18. Bxe5 {[%emt 0:01:00]} Ng6 {[%emt 0:00:59]} 19. Bxf6 {[%emt 0:02:09]} gxf6 {[%emt 0:00:52]} 20. Rxe8+ {[%emt 0:03:01]} Rxe8 {[%emt 0:00:30]} 21. Rd1 {[%emt 0:00:52]} Qc6 {[%emt 0:07:49]} 22. h4 {[%emt 0:08:21]} h5 {[%emt 0:02:13]} 23. d5 {[%emt 0:04:08]} Qc5 {[%emt 0:02:54]} 24. Ne4 {[%emt 0:00:22]} Qe7 {[%emt 0:00:51]} 25. Ng3 {[%emt 0:00:18]} Qc5 {[%emt 0:03:51]} 26. Rd2 {[%emt 0:02:52]} Qd6 {[%emt 0:02:14]} 27. Nxh5 {[%emt 0:04:06]} Rd8 {[%emt 0:02:47]} 28. Qf5 {[%emt 0:00:34]} Bc8 {[%emt 0:02:23]} 29. Nxf6+ {[%emt 0:00:38]} 1-0

[Event "Guimaraes Open 2018"]
[Site "Guimaraes"]
[Date "2018.10.06"]
[Round "3"]
[White "Machado, Tomas Dias"]
[Black "Peixoto, Flavio Pimenta"]
[Result "1-0"]
[ECO "B32"]
[WhiteElo "1966"]
[BlackElo "1464"]
[Annotator "NA RC"]
[PlyCount "135"]
[EventDate "2018.10.04"]
[EventType "swiss"]
[EventCountry "POR"]
[SourceTitle "playchess.com"]
[Source "ChessBase"]
[SourceQuality "1"]
[TimeControl "5400+30"]

1. e4 {[%emt 0:02:05]} c5 {[%emt 0:00:04]} 2. Nf3 {[%emt 0:04:31]} Nc6 {[%emt 0:00:43]} 3. d4 {[%emt 0:00:09]} cxd4 {[%emt 0:00:14]} 4. Nxd4 {[%emt 0:00:07]} g6 {[%emt 0:02:30]} 5. Bc4 {[%emt 0:00:49]} Bg7 {[%emt 0:01:17]} 6. Nxc6 {[%emt 0:00:08]} bxc6 {[%emt 0:00:16]} 7. O-O {[%emt 0:00:09]} d6 {[%emt 0:02:53]} 8. Re1 {[%emt 0:01:14]} Qb6 {[%emt 0:01:17]} 9. Bb3 {[%emt 0:00:50]} a5 {[%emt 0:06:14]} 10. a4 {[%emt 0:00:57]} Nf6 {[%emt 0:04:27]} 11. h3 {[%emt 0:01:03]} O-O {[%emt 0:01:21]} 12. Nc3 {[%emt 0:03:04]} Be6 {[%emt 0:06:09]} 13. Be3 {[%emt 0:11:17]} Qb7 {[%emt 0:01:12]} 14. Ra3 {[%emt 0:00:35]} Rad8 {[%emt 0:03:29]} 15. Re2 {[%emt 0:08:06]} Rd7 {[%emt 0:10:21]} 16. Rd2 {[%emt 0:02:36]} Rfd8 {[%emt 0:00:13]} 17. f4 {[%emt 0:25:42]} d5 {[%emt 0:06:04]} 18. e5 {[%emt 0:01:41]} Ne8 {[%emt 0:00:16]} 19. g4 {[%emt 0:02:23]} Nc7 {[%emt 0:07:25]} 20. Ba2 {[%emt 0:04:40]} Na6 {[%emt 0:10:33]} 21. Bb3 {[%emt 0:14:58]} c5 {[%emt 0:01:46]} 22. f5 {[%emt 0:03:37]} gxf5 {[%emt 0:01:36]} 23. gxf5 {[%emt 0:00:06]} Bxf5 {[%emt 0:00:19]} 24. Bxd5 {[%emt 0:00:11]} Qb8 {[%emt 0:04:43]} 25. Qf1 {[%emt 0:08:39]} Qxe5 {[%emt 0:01:19]} 26. Bf4 {[%emt 0:00:15]} Qf6 {[%emt 0:00:30]} 27. Rb3 {[%emt 0:01:27]} Nb4 {[%emt 0:01:14]} 28. Qg2 {[%emt 0:01:38]} Bxc2 {[%emt 0:05:12]} 29. Bg5 {[%emt 0:00:31]} Qg6 {[%emt 0:00:15]} 30. Be4 {[%emt 0:00:39]} Bxe4 {[%emt 0:00:32]} 31. Nxe4 {[%emt 0:00:06]} Rxd2 {[%emt 0:01:15]} 32. Nxd2 {[%emt 0:00:42]} h6 {[%emt 0:02:16]} 33. Be3 {[%emt 0:00:28]} Qxg2+ {[%emt 0:00:39]} 34. Kxg2 {[%emt 0:00:01]} Rd3 {[%emt 0:00:27]} 35. Rxd3 {[%emt 0:00:35]} Nxd3 {[%emt 0:00:03]} 36. Nc4 {[%emt 0:00:19]} Nxb2 {[%emt 0:00:37]} 37. Nxb2 {[%emt 0:00:31]} Bxb2 {[%emt 0:00:15]} 38. Bxc5 {[%emt 0:00:02]} e5 {[%emt 0:02:23]} 39. Be3 {[%emt 0:00:23]} Kg7 {[%emt 0:03:06]} 40. Bd2 {[%emt 0:00:09]} Kg6 {[%emt 0:01:59]} 41. Bxa5 {[%emt 0:00:04]} Bd4 {[%emt 0:00:34]} 42. Bc7 {[%emt 0:01:08]} Kf5 {[%emt 0:00:22]} 43. a5 {[%emt 0:00:37]} Ke6 {[%emt 0:01:03]} 44. a6 {[%emt 0:01:43]} Kd7 {[%emt 0:00:39]} 45. Bxe5 {[%emt 0:00:12]} Bc5 {[%emt 0:04:08]} 46. Bf4 {[%emt 0:00:30]} h5 {[%emt 0:00:45]} 47. Kf3 {[%emt 0:00:53]} Kc6 {[%emt 0:00:15]} 48. Be3 {[%emt 0:00:34]} Bxe3 {[%emt 0:00:24]} 49. Kxe3 Kb6 {[%emt 0:00:04]} 50. Kf4 {[%emt 0:01:20]} Kxa6 {[%emt 0:00:10]} 51. Kg5 {[%emt 0:00:18]} Kb6 {[%emt 0:01:40]} 52. Kxh5 {[%emt 0:00:16]} Kc6 {[%emt 0:00:15]} 53. h4 {[%emt 0:00:47]} Kd6 {[%emt 0:00:15]} 54. Kh6 {[%emt 0:00:36]} Ke5 {[%emt 0:00:41]} 55. Kg5 {[%emt 0:00:34]} f6+ {[%emt 0:00:42]} 56. Kg6 {[%emt 0:00:08]} f5 {[%emt 0:00:09]} 57. h5 {[%emt 0:00:07]} f4 {[%emt 0:00:27]} 58. h6 {[%emt 0:00:00]} Ke4 {[%emt 0:00:59]} 59. h7 {[%emt 0:00:08]} Ke3 {[%emt 0:00:33]} 60. h8=Q {[%emt 0:00:06]} f3 {[%emt 0:00:24]} 61. Qe5+ {[%emt 0:00:32]} Kd2 {[%emt 0:02:08]} 62. Qf4+ {[%emt 0:00:08]} Ke2 {[%emt 0:00:18]} 63. Qe4+ {[%emt 0:00:08]} Kf2 {[%emt 0:00:15]} 64. Kg5 {[%emt 0:00:03]} Kg3 {[%emt 0:00:18]} 65. Qg4+ {[%emt 0:01:19]} Kf2 {[%emt 0:00:20]} 66. Kf4 {[%emt 0:00:06]} Kf1 {[%emt 0:00:54]} 67. Qxf3+ {[%emt 0:00:06]} Kg1 {[%emt 0:00:05]} 68. Qe2 {[%emt 0:00:09]} 1-0